fUSD/lending_fUSD_20250809
["ID","MTS","AMOUNT","RATE_DAILY","PERIOD"]
[378153564,1754749880507,-530.96,0.00025479,2]
[378153565,1754749880516,-1001.43,0.00025479,2]
[378153566,1754749880528,-412.83,0.00025479,2]
[378153567,1754749880538,-400.0,0.00025479,2]
[378153568,1754749880547,-400.0,0.00025479,2]
[378153569,1754749880557,-400.0,0.00025479,2]
[378153570,1754749880567,-718.85,0.00025479,2]
[378153571,1754749880576,-400.0,0.00025479,2]
[378153572,1754749880586,-260.09766434,0.00025479,2]
[378153573,1754749880595,-400.0,0.00025479,2]
[378153574,1754749880605,-400.0,0.00025479,2]
[378153575,1754749880614,-696.23,0.00025479,2]
[378153576,1754749880624,-400.0,0.00025479,2]
[378153577,1754749880635,-535.28,0.00025479,2]
[378153578,1754749880645,-400.0,0.00025479,2]
[378153579,1754749880655,-433.62,0.00025479,2]
[378153580,1754749880665,-583.04,0.00025479,2]
[378153581,1754749880675,-400.0,0.00025479,2]
[378153582,1754749880685,-161.039484,0.00025479,2]
[378153583,1754749880694,-677.31,0.00025479,2]
[378153584,1754749880704,-400.0,0.00025479,2]
[378153585,1754749880713,-621.83,0.00025479,2]
[378153586,1754749880723,-621.54,0.00025479,2]
[378153587,1754749880733,-400.0,0.00025479,2]
[378153588,1754749880742,-546.6,0.00025479,2]
[378153589,1754749880752,-533.49,0.00025479,2]
[378153590,1754749880762,-400.0,0.00025479,2]
[378153591,1754749880772,-705.0,0.00025479,2]
[378153592,1754749880781,-400.0,0.00025479,2]
[378153593,1754749880791,-724.0,0.00025479,2]
[378153594,1754749880800,-400.0,0.00025479,2]
[378153595,1754749880810,-153.631749,0.00025479,2]
[378153596,1754749880820,-400.0,0.00025479,2]
[378153597,1754749880830,-400.0,0.00025479,2]
[378153598,1754749880839,-400.0,0.00025479,2]
[378153599,1754749880849,-610.92,0.00025479,2]
[378153600,1754749880858,-424.6,0.00025479,2]
[378153601,1754749880867,-400.0,0.00025479,2]
[378153602,1754749880877,-400.0,0.00025479,2]
[378153603,1754749880887,-507.83,0.00025479,2]
[378153604,1754749880897,-400.0,0.00025479,2]
[378153605,1754749880908,-400.0,0.00025479,2]
[378153606,1754749880917,-589.74,0.00025479,2]
[378153607,1754749880927,-400.0,0.00025479,2]
[378153608,1754749880936,-400.0,0.00025479,2]
[378153609,1754749880945,-579.39,0.00025479,2]
[378153610,1754749880955,-970.0,0.00025479,2]
[378153611,1754749880964,-400.0,0.00025479,2]
[378153612,1754749880974,-400.0,0.00025479,2]
[378153613,1754749880984,-400.0,0.00025479,2]
[378153614,1754749880993,-519.71,0.00025479,2]
[378153615,1754749881003,-400.0,0.00025479,2]
[378153616,1754749881015,-367.35819221,0.00025479,2]
[378153617,1754749881031,-802.61,0.00025479,2]
[378153618,1754749881040,-400.0,0.00025479,2]
[378153619,1754749881051,-677.07,0.00025479,2]
[378153620,1754749881061,-400.0,0.00025479,2]
[378153621,1754749881071,-1787.06,0.00025479,2]
[378153622,1754749881080,-494.62,0.00025479,2]
[378153623,1754749881089,-400.0,0.00025479,2]
[378153624,1754749881099,-400.0,0.00025479,2]
[378153625,1754749881109,-764.25078593,0.00025479,2]
[378153626,1754749881118,-701.62,0.00025479,2]
[378153627,1754749881128,-400.0,0.00025479,2]
[378153628,1754749881138,-400.0,0.00025479,2]
[378153629,1754749881148,-400.0,0.00025479,2]
[378153630,1754749881157,-400.0,0.00025479,2]
[378153631,1754749881167,-400.0,0.00025479,2]
[378153632,1754749881176,-624.19,0.00025479,2]
[378153633,1754749881186,-400.0,0.00025479,2]
[378153634,1754749881196,-483.14,0.00025479,2]
[378153635,1754749881206,-400.0,0.00025479,2]
[378153636,1754749881215,-400.0,0.00025479,2]
[378153637,1754749881225,-400.0,0.00025479,2]
[378153638,1754749881235,-400.0,0.00025479,2]
[378153639,1754749881245,-400.0,0.00025479,2]
[378153640,1754749881255,-340.97454111,0.00025479,2]
[378153641,1754749881265,-400.0,0.00025479,2]
[378153642,1754749881276,-3850.95,0.00025479,2]
[378153643,1754749881285,-400.0,0.00025479,2]
[378153644,1754749881295,-400.0,0.00025479,2]
[378153645,1754749881308,-470.89684716,0.00025479,2]
[378153646,1754749881320,-400.0,0.00025479,2]
[378153647,1754749881330,-400.0,0.00025479,2]
[378153648,1754749881340,-400.0,0.00025479,2]
[378153649,1754749881350,-625.86,0.00025479,2]
[378153650,1754749881362,-457.61,0.00025479,2]
[378153651,1754749881372,-632.69,0.00025479,2]
[378153652,1754749881382,-400.0,0.00025479,2]
[378153653,1754749881392,-514.34,0.00025479,2]
[378153654,1754749881402,-400.0,0.00025479,2]
[378153655,1754749881412,-400.0,0.00025479,2]
[378153656,1754749881422,-400.0,0.00025479,2]
[378153657,1754749881431,-400.0,0.00025479,2]
[378153658,1754749881441,-614.84,0.00025479,2]
[378153659,1754749881451,-1193.7,0.00025479,2]
[378153660,1754749881460,-896.2,0.00025479,2]
[378153661,1754749881470,-400.0,0.00025479,2]
[378153662,1754749881485,-1228.24,0.00025479,2]
[378153663,1754749881495,-527.23,0.00025479,2]
[378153664,1754749881505,-752.81,0.00025479,2]
[378153665,1754749881515,-400.0,0.00025479,2]
[378153666,1754749881524,-400.0,0.00025479,2]
[378153667,1754749881535,-400.0,0.00025479,2]
[378153668,1754749881545,-680.66,0.00025479,2]
[378153669,1754749881554,-1359.96,0.00025479,2]
[378153670,1754749881563,-548.22,0.00025479,2]
[378153671,1754749881572,-403.31024425,0.00025479,2]
[378153672,1754749881582,-400.0,0.00025479,2]
[378153673,1754749881592,-400.0,0.00025479,2]
[378153674,1754749881601,-400.0,0.00025479,2]
[378153675,1754749881611,-400.0,0.00025479,2]
[378153676,1754749881621,-674.43,0.00025479,2]
[378153677,1754749881631,-400.0,0.00025479,2]
[378153678,1754749881640,-400.0,0.00025479,2]
[378153679,1754749881651,-400.0,0.00025479,2]
[378153680,1754749881661,-811.15,0.00025479,2]
[378153681,1754749881671,-431.75008563,0.00025479,2]
[378153682,1754749881681,-734.05,0.00025479,2]
[378153683,1754749881692,-434.7,0.00025479,2]
[378153684,1754749881702,-516.44,0.00025479,2]
[378153685,1754749881712,-400.0,0.00025479,2]
[378153686,1754749881722,-679.49,0.00025479,2]
[378153687,1754749881732,-730.64,0.00025479,2]
[378153688,1754749881741,-519.26,0.00025479,2]
[378153689,1754749881751,-400.0,0.00025479,2]
[378153690,1754749881761,-400.0,0.00025479,2]
[378153691,1754749881770,-755.22,0.00025479,2]
[378153692,1754749881780,-454.99,0.00025479,2]
[378153693,1754749881790,-698.76,0.00025479,2]
[378153694,1754749881800,-418.51598769,0.00025479,2]
[378153695,1754749881809,-446.65,0.00025479,2]
[378153696,1754749881819,-534.6,0.00025479,2]
[378153697,1754749881829,-649.14,0.00025479,2]
[378153698,1754749881838,-400.0,0.00025479,2]
[378153699,1754749881848,-595.22,0.00025479,2]
[378153700,1754749881858,-692.72,0.00025479,2]
[378153701,1754749881868,-400.0,0.00025479,2]
[378153702,1754749881878,-648.65,0.00025479,2]
[378153703,1754749881888,-400.0,0.00025479,2]
[378153704,1754749881898,-535.46,0.00025479,2]
[378153705,1754749881909,-634.42,0.00025479,2]
[378153706,1754749881919,-1408.11,0.00025479,2]
[378153707,1754749881929,-680.88,0.00025479,2]
[378153708,1754749881940,-2400.15,0.00025479,2]
[378153709,1754749881950,-622.31,0.00025479,2]
[378153710,1754749881960,-428.71,0.00025479,2]
[378153711,1754749881970,-400.0,0.00025479,2]
[378153712,1754749881979,-674.5,0.00025479,2]
[378153713,1754749881989,-414.25,0.00025479,2]
[378153714,1754749881999,-465.26531017,0.00025479,2]
[378153715,1754749882009,-826.8,0.00025479,2]
[378153716,1754749882019,-845.457293,0.00025479,2]
[378153717,1754749882029,-400.0,0.00025479,2]
[378153718,1754749882040,-400.0,0.00025479,2]
[378153719,1754749882050,-400.0,0.00025479,2]
[378153720,1754749882060,-400.0,0.00025479,2]
[378153721,1754749882071,-739.61,0.00025479,2]
[378153722,1754749882080,-400.0,0.00025479,2]
[378153723,1754749882090,-400.0,0.00025479,2]
[378153724,1754749882100,-665.23,0.00025479,2]
[378153725,1754749882110,-400.0,0.00025479,2]
[378153726,1754749882120,-480.61,0.00025479,2]
[378153727,1754749882130,-1050.91,0.00025479,2]
[378153728,1754749882140,-194.90275786,0.00025479,2]
[378153729,1754749882152,-5194.46,0.00025479,2]
[378153730,1754749882162,-453.79,0.00025479,2]
[378153731,1754749882173,-400.0,0.00025479,2]
[378153732,1754749882183,-2643.65,0.00025479,2]
[378153733,1754749882193,-514.79,0.00025479,2]
[378153734,1754749882203,-400.0,0.00025479,2]
[378153735,1754749882214,-660.2,0.00025479,2]
[378153736,1754749882225,-400.0,0.00025479,2]
[378153737,1754749882235,-411.25,0.00025479,2]
[378153738,1754749882246,-781.1,0.00025479,2]
[378153739,1754749882256,-791.8,0.00025479,2]
[378153740,1754749882266,-867.83,0.00025479,2]
[378153741,1754749882277,-885.16,0.00025479,2]
[378153742,1754749882288,-400.0,0.00025479,2]
[378153743,1754749882298,-400.0,0.00025479,2]
[378153744,1754749882313,-587.79,0.00025479,2]
[378153745,1754749882324,-400.0,0.00025479,2]
[378153746,1754749882335,-461.65,0.00025479,2]
[378153747,1754749882344,-438.2,0.00025479,2]
[378153748,1754749882355,-400.0,0.00025479,2]
[378153749,1754749882364,-825.54,0.00025479,2]
[378153750,1754749882374,-400.0,0.00025479,2]
[378153751,1754749882385,-925.09,0.00025479,2]
[378153752,1754749882396,-445.92,0.00025479,2]
[378153753,1754749882407,-459.73,0.00025479,2]
[378153754,1754749882417,-650.65,0.00025479,2]
[378153755,1754749882428,-400.0,0.00025479,2]
[378153756,1754749882439,-513.27,0.00025479,2]
[378153757,1754749882449,-592.16,0.00025479,2]
[378153758,1754749882459,-400.0,0.00025479,2]
[378153759,1754749882469,-400.0,0.00025479,2]
[378153760,1754749882480,-2647.75,0.00025479,2]
[378153761,1754749882490,-400.0,0.00025479,2]
[378153762,1754749882501,-561.02,0.00025479,2]
[378153763,1754749882515,-400.0,0.00025479,2]
[378153764,1754749882525,-462.18,0.00025479,2]
[378153765,1754749882535,-400.0,0.00025479,2]
[378153766,1754749882545,-957.64,0.00025479,2]
[378153767,1754749882555,-400.0,0.00025479,2]
[378153768,1754749882566,-977.43,0.00025479,2]
[378153769,1754749882777,-671.66,0.00025479,2]
[378153770,1754749882814,-400.0,0.00025479,2]
[378153771,1754749882824,-802.08,0.00025479,2]
[378153772,1754749882834,-420.52,0.00025479,2]
[378153773,1754749882844,-400.0,0.00025479,2]
[378153774,1754749882853,-400.0,0.00025479,2]
[378153775,1754749882863,-1340.24,0.00025479,2]
[378153776,1754749882873,-400.0,0.00025479,2]
[378153777,1754749882883,-400.0,0.00025479,2]
[378153778,1754749882893,-672.14,0.00025479,2]
[378153779,1754749882902,-400.0,0.00025479,2]
[378153780,1754749882912,-400.0,0.00025479,2]
[378153781,1754749882922,-736.93,0.00025479,2]
[378153782,1754749882931,-1990.37,0.00025479,2]
[378153783,1754749882942,-400.0,0.00025479,2]
[378153784,1754749882952,-400.0,0.00025479,2]
[378153785,1754749882961,-400.0,0.00025479,2]
[378153786,1754749882971,-400.0,0.00025479,2]
[378153787,1754749882981,-591.83,0.00025479,2]
[378153788,1754749882991,-815.55,0.00025479,2]
[378153789,1754749883001,-400.0,0.00025479,2]
[378153790,1754749883011,-493.74,0.00025479,2]
[378153791,1754749883021,-400.86,0.00025479,2]
[378153792,1754749883030,-765.55,0.00025479,2]
[378153793,1754749883040,-400.0,0.00025479,2]
[378153794,1754749883050,-675.09,0.00025479,2]
[378153795,1754749883060,-400.0,0.00025479,2]
[378153796,1754749883070,-551.22,0.00025479,2]
[378153797,1754749883079,-1166.65,0.00025479,2]
[378153798,1754749883088,-400.0,0.00025479,2]
[378153799,1754749883098,-570.96,0.00025479,2]
[378153800,1754749883107,-1045.19,0.00025479,2]
[378153801,1754749883118,-410.35,0.00025479,2]
[378153802,1754749883128,-1166.69,0.00025479,2]
[378153803,1754749883138,-634.37,0.00025479,2]
[378153804,1754749883150,-400.0,0.00025479,2]
[378153805,1754749883159,-795.25,0.00025479,2]
[378153806,1754749883170,-400.0,0.00025479,2]
[378153807,1754749883180,-656.07,0.00025479,2]
[378153808,1754749883190,-565.05,0.00025479,2]
[378153809,1754749883199,-400.0,0.00025479,2]
[378153810,1754749883209,-801.25,0.00025479,2]
[378153811,1754749883219,-400.0,0.00025479,2]
[378153812,1754749883228,-400.0,0.00025479,2]
[378153813,1754749883238,-832.39,0.00025479,2]
[378153814,1754749883248,-862.57,0.00025479,2]
[378153815,1754749883258,-400.0,0.00025479,2]
[378153816,1754749883268,-400.0,0.00025479,2]
[378153817,1754749883278,-400.0,0.00025479,2]
[378153818,1754749883288,-517.57,0.00025479,2]
[378153819,1754749883298,-546.29,0.00025479,2]
[378153820,1754749883311,-476.91,0.00025479,2]
[378153821,1754749883320,-400.0,0.00025479,2]
[378153822,1754749883330,-550.94,0.00025479,2]
[378153823,1754749883340,-400.0,0.00025479,2]
[378153824,1754749883351,-400.0,0.00025479,2]
[378153825,1754749883361,-400.0,0.00025479,2]
[378153826,1754749883370,-567.68,0.00025479,2]
[378153827,1754749883380,-768.64,0.00025479,2]
[378153828,1754749883392,-549.73,0.00025479,2]
[378153829,1754749883403,-643.51,0.00025479,2]
[378153830,1754749883412,-495.73,0.00025479,2]
[378153831,1754749883422,-400.0,0.00025479,2]
[378153832,1754749883431,-647.63,0.00025479,2]
[378153833,1754749883442,-898.41,0.00025479,2]
[378153834,1754749883452,-453.06,0.00025479,2]
[378153835,1754749883461,-578.13,0.00025479,2]
[378153836,1754749883470,-927.44,0.00025479,2]
[378153837,1754749883481,-400.0,0.00025479,2]
[378153838,1754749883491,-400.0,0.00025479,2]
[378153839,1754749883500,-660.0,0.00025479,2]
[378153840,1754749883510,-574.5,0.00025479,2]
[378153841,1754749883519,-530.57,0.00025479,2]
[378153842,1754749883529,-692.84,0.00025479,2]
[378153843,1754749883539,-400.0,0.00025479,2]
[378153844,1754749883549,-1000.0,0.00025479,2]
[378153845,1754749883558,-498.3,0.00025479,2]
[378153846,1754749883568,-400.0,0.00025479,2]
[378153847,1754749883577,-963.91,0.00025479,2]
[378153848,1754749883587,-400.0,0.00025479,2]
[378153849,1754749883596,-989.36,0.00025479,2]
[378153850,1754749883606,-400.0,0.00025479,2]
[378153851,1754749883616,-436.50154379,0.00025479,2]
[378153852,1754749883626,-537.78,0.00025479,2]
[378153853,1754749883635,-546.37,0.00025479,2]
[378153854,1754749883645,-700.66,0.00025479,2]
[378153855,1754749883654,-996.04,0.00025479,2]
[378153856,1754749883666,-1086.93,0.00025479,2]
[378153857,1754749883675,-400.0,0.00025479,2]
[378153858,1754749883684,-400.0,0.00025479,2]
[378153859,1754749883693,-665.94,0.00025479,2]
[378153860,1754749883703,-1008.82,0.00025479,2]
[378153861,1754749883712,-535.12,0.00025479,2]
[378153862,1754749883721,-400.0,0.00025479,2]
[378153863,1754749883731,-400.0,0.00025479,2]
[378153864,1754749883740,-400.0,0.00025479,2]
[378153865,1754749883750,-1111.07,0.00025479,2]
[378153866,1754749883759,-1026.41,0.00025479,2]
[378153867,1754749883768,-787.42,0.00025479,2]
[378153868,1754749883778,-655.61,0.00025479,2]
[378153869,1754749883787,-706.41,0.00025479,2]
[378153870,1754749883797,-1073.6,0.00025479,2]
[378153871,1754749883807,-925.24,0.00025479,2]
[378153872,1754749883817,-414.41,0.00025479,2]
[378153873,1754749883827,-400.0,0.00025479,2]
[378153874,1754749883836,-400.0,0.00025479,2]
[378153875,1754749883845,-863.28,0.00025479,2]
[378153876,1754749883855,-400.0,0.00025479,2]
[378153877,1754749883865,-400.0,0.00025479,2]
[378153878,1754749883875,-400.0,0.00025479,2]
[378153879,1754749883884,-400.0,0.00025479,2]
[378153880,1754749883894,-1189.83,0.00025479,2]
[378153881,1754749883904,-400.0,0.00025479,2]
[378153882,1754749883914,-1765.53,0.00025479,2]
[378153883,1754749883924,-1041.12,0.00025479,2]
[378153884,1754749883934,-400.0,0.00025479,2]
[378153885,1754749883943,-970.94,0.00025479,2]
[378153886,1754749883953,-568.34,0.00025479,2]
[378153887,1754749883963,-400.0,0.00025479,2]
[378153888,1754749883972,-459.46,0.00025479,2]
[378153889,1754749883982,-400.0,0.00025479,2]
[378153890,1754749883992,-155.06,0.00025479,2]
[378153891,1754749884002,-400.0,0.00025479,2]
[378153892,1754749884012,-400.0,0.00025479,2]
[378153893,1754749884023,-444.86,0.00025479,2]
[378153894,1754749884033,-869.29,0.00025479,2]
[378153895,1754749884044,-578.24,0.00025479,2]
[378153896,1754749884054,-400.0,0.00025479,2]
[378153897,1754749884064,-400.0,0.00025479,2]
[378153898,1754749884074,-1019.65,0.00025479,2]
[378153899,1754749884083,-400.0,0.00025479,2]
[378153900,1754749884093,-400.0,0.00025479,2]
[378153901,1754749884103,-400.0,0.00025479,2]
[378153902,1754749884113,-400.0,0.00025479,2]
[378153903,1754749884123,-400.0,0.00025479,2]
[378153904,1754749884132,-1043.8,0.00025479,2]
[378153905,1754749884142,-400.0,0.00025479,2]
[378153906,1754749884151,-727.06,0.00025479,2]
[378153907,1754749884161,-168.25,0.00025479,2]
[378153908,1754749884171,-400.97,0.00025479,2]
[378153909,1754749884181,-400.0,0.00025479,2]
[378153910,1754749884191,-570.73,0.00025479,2]
[378153911,1754749884200,-400.0,0.00025479,2]
[378153912,1754749884209,-1750.64,0.00025479,2]
[378153913,1754749884219,-1171.46,0.00025479,2]
[378153914,1754749884229,-767.53,0.00025479,2]
[378153915,1754749884239,-268.85474945,0.00025479,2]
[378153916,1754749884249,-400.0,0.00025479,2]
[378153917,1754749884259,-499.93,0.00025479,2]
[378153918,1754749884269,-400.0,0.00025479,2]
[378153919,1754749884279,-2921.89,0.00025479,2]
[378153920,1754749884288,-400.0,0.00025479,2]
[378153921,1754749884297,-425.28,0.00025479,2]
[378153922,1754749884309,-400.0,0.00025479,2]
[378153923,1754749884320,-680.9,0.00025479,2]
[378153924,1754749884330,-400.0,0.00025479,2]
[378153925,1754749884339,-400.0,0.00025479,2]
[378153926,1754749884350,-400.0,0.00025479,2]
[378153927,1754749884360,-168.0,0.00025526,2]
[378153928,1754749884369,-150.0,0.00025529,2]
[378153929,1754749884379,-256.0,0.0002553,2]
[378153930,1754749884389,-150.0,0.00025548,2]
[378153931,1754749884399,-150.0,0.00025557,2]
[378153932,1754749884408,-233.82,0.00025562,2]
[378153933,1754749884419,-150.0,0.00025579,2]
[378153934,1754749884429,-150.0,0.00025591,2]
[378153935,1754749884438,-168.0,0.00025599,2]
[378153936,1754749884448,-969.39,0.00025605,8]
[378153937,1754749884457,-150.0,0.00025633,2]
[378153938,1754749884468,-150.0,0.00025634,2]
[378153939,1754749884478,-311.80622992,0.00025653,2]
[378153940,1754749884488,-512.0,0.00025683,10]
[378153941,1754749884498,-1000.0,0.00025686,2]
[378153942,1754749884508,-1000.0,0.0002569,2]
[378153943,1754749884518,-168.0,0.00025693,2]
[378153944,1754749884527,-151.1,0.00025693,2]
[378153945,1754749884537,-150.0,0.00025699,2]
[378153946,1754749884547,-150.0,0.00025712,2]
[378153947,1754749884556,-150.0,0.00025716,2]
[378153948,1754749884566,-150.0,0.00025729,2]
[378153949,1754749884575,-206.26841048,0.00025732,2]
[378153950,1754749884585,-150.0,0.0002574,2]
[378153951,1754749884595,-150.0,0.00025742,2]
[378153952,1754749884604,-152.0,0.0002575,4]
[378153953,1754749884614,-725.78,0.00025752,2]
[378153954,1754749884623,-725.78,0.00025752,2]
[378153955,1754749884633,-725.78,0.00025752,2]
[378153956,1754749884642,-725.78,0.00025752,2]
[378153957,1754749884651,-725.78,0.00025752,2]
[378153958,1754749884662,-725.79045597,0.00025752,2]
[378153959,1754749884671,-1095.41,0.00025752,2]
[378153960,1754749884682,-500.0,0.00025752,2]
[378153961,1754749884692,-500.0,0.00025752,2]
[378153962,1754749884701,-1533.42354,0.00025753,2]
[378153963,1754749884711,-156.848049,0.00025753,2]
[378153964,1754749884720,-1728.357169,0.00025753,2]
[378153965,1754749884730,-400.0,0.00025753,2]
[378153966,1754749884739,-400.0,0.00025753,2]
[378153967,1754749884749,-400.0,0.00025753,2]
[378153968,1754749884759,-400.0,0.00025753,2]
[378153969,1754749884767,-464.73,0.00025753,2]
[378153970,1754749884777,-400.0,0.00025753,2]
[378153971,1754749884786,-400.0,0.00025753,2]
[378153972,1754749884796,-400.0,0.00025753,2]
[378153973,1754749884805,-521.74,0.00025753,2]
[378153974,1754749884814,-400.0,0.00025753,2]
[378153975,1754749884823,-400.0,0.00025753,2]
[378153976,1754749884833,-400.0,0.00025753,2]
[378153977,1754749884843,-400.0,0.00025753,2]
[378153978,1754749884852,-188.09767551,0.00025753,2]
[378153979,1754749884862,-400.0,0.00025753,2]
[378153980,1754749884871,-400.0,0.00025753,2]
[378153981,1754749884881,-400.0,0.00025753,2]
[378153982,1754749884891,-400.0,0.00025753,2]
[378153983,1754749884900,-400.0,0.00025753,2]
[378153984,1754749884910,-400.0,0.00025753,2]
[378153985,1754749884921,-400.0,0.00025753,2]
[378153986,1754749884931,-400.0,0.00025753,2]
[378153987,1754749884941,-400.0,0.00025753,2]
[378153988,1754749884951,-400.0,0.00025753,2]
[378153989,1754749884961,-400.0,0.00025753,2]
[378153990,1754749884971,-400.0,0.00025753,2]
[378153991,1754749884981,-400.0,0.00025753,2]
[378153992,1754749884991,-98.29395169,0.00025753,2]
[378153993,1754749885991,-420.20030018,0.00022822,3]
[378153994,1754749886002,-467.79969982,0.00022822,3]
[378153995,1754749886012,-400.0,0.00024657,2]
[378153996,1754749886021,-400.0,0.00024657,2]
[378153997,1754749886033,-400.0,0.00024931,2]
[378153998,1754749886044,-1776.0,0.00025062,3]
[378153999,1754749886055,-486.35604831,0.00025753,2]
[378154000,1754749886064,-400.0,0.00025753,2]
[378154001,1754749886074,-400.0,0.00025753,2]
[378154002,1754749886084,-400.0,0.00025753,2]
[378154003,1754749886094,-941.01,0.00025753,2]
[378154004,1754749886103,-226.98817774,0.00025753,2]
[378154005,1754749886128,-400.0,0.00024657,2]
[378154006,1754749886138,-173.01182226,0.00025753,2]
[378154007,1754749886148,-400.0,0.00025753,2]
[378154008,1754749886157,-400.0,0.00025753,2]
[378154009,1754749886166,-400.0,0.00025753,2]
[378154010,1754749886177,-436.77,0.00025753,2]
[378154011,1754749886187,-400.0,0.00025753,2]
[378154012,1754749886195,-400.0,0.00025753,2]
[378154013,1754749886204,-400.0,0.00025753,2]
[378154014,1754749886214,-400.0,0.00025753,2]
[378154015,1754749886223,-51.91817772,0.00025753,2]
[378154016,1754749886235,-348.08182228,0.00025753,2]
[378154017,1754749886244,-284.46176079,0.00025753,2]
[378154018,1754749886256,-115.53823921,0.00025753,2]
[378154019,1754749886265,-201.40176079,0.00025753,2]
[378154020,1754749887547,-151.0,0.00022562,7]
[378154021,1754749887565,-888.0,0.000237,3]
[378154022,1754749887574,-349.05922636,0.00023877,2]
[378154023,1754749887584,-4935.893,0.00023972,2]
[378154024,1754749887594,-349.05922636,0.00024188,2]
[378154025,1754749887604,-888.0,0.00024235,3]
[378154026,1754749887613,-888.0,0.00024636,3]
[378154027,1754749887623,-400.0,0.00024657,2]
[378154028,1754749887632,-400.0,0.00024657,2]
[378154029,1754749887642,-400.0,0.00024657,2]
[378154030,1754749887651,-398.10487157,0.00024657,2]
[378154031,1754749887661,-400.0,0.00024657,2]
[378154032,1754749887671,-400.0,0.00024657,2]
[378154033,1754749887680,-963.94,0.00024657,2]
[378154034,1754749887690,-400.0,0.00024657,2]
[378154035,1754749887699,-421.61,0.00024657,2]
[378154036,1754749887709,-400.0,0.00024657,2]
[378154037,1754749887718,-500.0,0.00024657,2]
[378154038,1754749887727,-500.0,0.00024657,2]
[378154039,1754749887737,-400.0,0.00024657,2]
[378154040,1754749887746,-400.0,0.00024657,2]
[378154041,1754749887756,-500.0,0.00024657,2]
[378154042,1754749887766,-400.0,0.00024657,2]
[378154043,1754749887775,-500.0,0.00024657,2]
[378154044,1754749887785,-598.88,0.00024657,2]
[378154045,1754749887795,-888.0,0.00024721,3]
[378154046,1754749887805,-888.0,0.00024736,3]
[378154047,1754749887815,-888.0,0.0002484,3]
[378154048,1754749887825,-963.94,0.00024931,2]
[378154049,1754749887835,-198.59823921,0.00025753,2]
[378154050,1754749887845,-400.0,0.00025753,2]
[378154051,1754749887855,-400.0,0.00025753,2]
[378154052,1754749887864,-708.11,0.00025753,2]
[378154053,1754749887874,-400.0,0.00025753,2]
[378154054,1754749887884,-400.0,0.00025753,2]
[378154055,1754749887893,-400.0,0.00025753,2]
[378154056,1754749887903,-400.0,0.00025753,2]
[378154057,1754749887913,-236.33940619,0.00025753,2]
[378154058,1754749887927,-163.66059381,0.00025753,2]
[378154059,1754749887937,-244.16210247,0.00025753,2]
[378154060,1754749893900,250.0,0.00025,120]
[378154062,1754749897038,250.0,0.00023,120]
[378154081,1754750116999,192.61,0.00017916,2]
[378154099,1754750759822,155.53,0.00013699,2]